bitfinex/quotes_BTCUSD_20250414
["timestamp","ask_amount","ask_price","bid_price","bid_amount"]
[1744607053592,0.13988,84843.0,84841.0,0.003]
[1744607054431,0.13988,84843.0,84841.0,0.002]
[1744607054795,0.13988,84843.0,84841.0,0.003]
[1744607054995,0.13988,84842.0,84841.0,0.003]
[1744607055910,0.13988,84842.0,84841.0,0.00936549]
[1744607056113,0.13988,84842.0,84841.0,0.01036549]
[1744607056317,0.13988,84842.0,84841.0,0.00836549]
[1744607056643,0.13988,84842.0,84841.0,0.01036549]
[1744607059088,0.47988,84842.0,84841.0,0.01036549]
[1744607059288,0.64732154,84842.0,84841.0,0.01036549]
[1744607059426,0.64732154,84842.0,84841.0,0.003]
[1744607060732,0.64732154,84842.0,84841.0,0.002]
[1744607061133,0.64732154,84842.0,84836.0,8.696e-05]
[1744607061134,0.188594,84838.0,84836.0,8.696e-05]
[1744607061377,0.30943554,84838.0,84836.0,8.696e-05]
[1744607062555,0.30943554,84838.0,84836.0,0.00108696]
[1744607064782,0.72393394,84838.0,84836.0,8.696e-05]
[1744607064989,0.46084154,84837.0,84836.0,8.696e-05]
[1744607066249,0.46184154,84837.0,84836.0,8.696e-05]
[1744607070469,0.87633994,84837.0,84836.0,8.696e-05]
[1744607077519,0.7554984,84837.0,84836.0,8.696e-05]
[1744607077693,0.001,84837.0,84836.0,0.18868596]
[1744607077932,0.001,84837.0,84836.0,0.23518596]
[1744607078497,0.001,84837.0,84836.0,0.28208596]
[1744607080543,0.001,84837.0,84836.0,0.28308596]
[1744607081169,0.13988,84842.0,84841.0,0.188588]
[1744607082808,0.13988,84842.0,84841.0,0.189588]
[1744607084678,0.4262834,84847.0,84846.0,0.188576]
[1744607084679,0.4144984,84847.0,84846.0,0.188576]
[1744607084835,0.5543384,84847.0,84846.0,0.188576]
[1744607085036,0.5543384,84847.0,84846.0,0.235076]
[1744607088201,0.13984,84847.0,84846.0,0.235076]
[1744607089338,0.13984,84847.0,84846.0,0.281976]
[1744607090618,0.13984,84847.0,84846.0,0.282976]
[1744607090977,0.13984,84847.0,84846.0,0.281976]
[1744607091682,0.13984,84847.0,84846.0,0.283976]
[1744607092106,0.13984,84847.0,84846.0,0.286976]
[1744607092941,0.13984,84847.0,84846.0,0.284976]
[1744607093220,0.13984,84847.0,84846.0,0.286976]
[1744607094741,0.0004227,84849.0,84847.0,0.188572]
[1744607094941,0.13976,84848.0,84847.0,0.188572]
[1744607096349,0.13976,84848.0,84847.0,0.189572]
[1744607096734,0.13976,84848.0,84847.0,0.188572]
[1744607097140,0.13976,84848.0,84847.0,0.191572]
[1744607101473,0.0004227,84849.0,84847.0,0.189572]
[1744607101636,0.0004227,84849.0,84847.0,0.19192898]
[1744607101835,0.0004227,84849.0,84848.0,0.0464]
[1744607103429,0.0014227,84849.0,84848.0,0.16924154]
[1744607103707,0.0004227,84849.0,84848.0,0.16924154]
[1744607104125,0.0004227,84849.0,84848.0,0.17224154]
[1744607104355,0.0004227,84849.0,84848.0,0.16924154]
[1744607104534,0.0004227,84849.0,84848.0,0.17324154]
[1744607104714,0.0014227,84849.0,84848.0,0.17324154]
[1744607105655,0.0014227,84849.0,84848.0,0.17124154]
[1744607106037,0.0014227,84849.0,84848.0,0.17424154]
[1744607106638,0.0014227,84849.0,84848.0,0.22124154]
[1744607107244,0.0014227,84849.0,84848.0,0.22359832]
[1744607107922,0.0014227,84849.0,84848.0,0.21959832]
[1744607108135,0.0004227,84849.0,84848.0,0.21959832]
[1744607108343,0.0014227,84849.0,84848.0,0.22259832]
[1744607108541,0.0014227,84849.0,84848.0,0.21659832]
[1744607108797,0.0004227,84872.0,84848.0,0.21659832]
[1744607108798,0.0004227,84872.0,84864.0,0.188536]
[1744607108925,0.0004227,84872.0,84865.0,0.17269756]
[1744607109353,0.0004227,84872.0,84865.0,0.22705937]
[1744607109952,0.0004227,84872.0,84865.0,0.22714633]
[1744607111217,0.0004227,84872.0,84865.0,0.22479031]
[1744607111649,0.0014227,84866.0,84865.0,0.23179031]
[1744607111863,0.0014227,84866.0,84865.0,0.23479031]
[1744607112283,0.0014227,84866.0,84865.0,0.23179031]
[1744607112404,0.0014227,84866.0,84865.0,0.23579031]
[1744607113294,0.0014227,84866.0,84865.0,0.24730843]
[1744607114765,0.002,84889.0,84881.0,0.0965]
[1744607114967,0.002,84889.0,84881.0,0.09885592]
[1744607115589,0.002,84889.0,84881.0,0.21969746]
[1744607116636,0.002,84889.0,84881.0,0.22269746]
[1744607117043,0.002,84889.0,84881.0,0.22469746]
[1744607117436,0.002,84889.0,84881.0,0.22269746]
[1744607117934,0.002,84889.0,84881.0,0.22669746]
[1744607118811,0.002,84889.0,84881.0,0.22369746]
[1744607118959,0.002,84889.0,84881.0,0.22134154]
[1744607119161,0.002,84889.0,84881.0,0.22334154]
[1744607120898,0.002,84889.0,84881.0,0.22569721]
[1744607121308,0.002,84889.0,84881.0,0.23070129]
[1744607121633,0.002,84889.0,84881.0,0.22905685]
[1744607121780,0.0004231,84895.0,84894.0,0.18847]
[1744607121980,0.0004231,84895.0,84894.0,0.36056709]
[1744607122203,0.0004231,84895.0,84894.0,0.40321154]
[1744607122412,0.0004231,84895.0,84894.0,0.41775239]
[1744607122658,0.0004231,84895.0,84894.0,0.42511214]
[1744607123065,0.0004231,84895.0,84894.0,0.42711214]
[1744607123241,1e-07,84895.0,84894.0,1.18581214]
[1744607123474,0.000423,84900.0,84894.0,1.18581214]
[1744607123475,2e-07,84900.0,84899.0,0.20299985]
[1744607123689,0.0004225,84916.0,84899.0,0.20299985]
[1744607123690,0.0004225,84916.0,84915.0,0.282323]
[1744607123826,0.00088487,84916.0,84915.0,0.40316454]
[1744607124224,0.00088487,84916.0,84915.0,0.41052429]
[1744607125937,0.00088487,84916.0,84915.0,0.41452429]
[1744607126944,0.00088487,84916.0,84915.0,0.41252429]
[1744607127149,0.00088487,84916.0,84915.0,0.41052429]
[1744607127573,0.00088487,84916.0,84915.0,0.41452429]
[1744607127828,0.00088487,84916.0,84915.0,0.41052429]
[1744607128131,0.00088487,84916.0,84915.0,0.41852429]
[1744607128750,0.00088487,84916.0,84915.0,0.43006514]
[1744607128978,0.00088487,84916.0,84915.0,0.43406514]
[1744607129987,8.7e-07,84916.0,84915.0,1.33332514]
[1744607130556,8.7e-07,84924.0,84923.0,0.01454085]
[1744607130746,5.1e-07,84924.0,84923.0,0.98798239]
[1744607130947,5.1e-07,84924.0,84923.0,1.18374714]
[1744607131135,5.1e-07,84924.0,84923.0,1.18474714]
[1744607131576,5.1e-07,84924.0,84923.0,1.19863094]
[1744607131975,5.1e-07,84924.0,84923.0,1.20563094]
[1744607132554,5.1e-07,84924.0,84923.0,1.30563026]
[1744607132761,5.1e-07,84924.0,84923.0,1.31063026]
[1744607133573,5.1e-07,84924.0,84923.0,1.30327051]
[1744607133812,5.1e-07,84924.0,84923.0,1.30827051]
[1744607134603,0.0004226,84934.0,84933.0,0.20292385]
[1744607134764,0.0004226,84934.0,84933.0,0.32376539]
[1744607134968,0.0004226,84934.0,84933.0,0.33705807]
[1744607135398,0.0004226,84934.0,84933.0,0.34441302]
[1744607135877,0.0004226,84934.0,84933.0,0.34841302]
[1744607136813,0.0004226,84934.0,84933.0,0.36002638]
[1744607138008,0.0004226,84934.0,84933.0,0.36502638]
[1744607144344,0.0004226,84934.0,84933.0,0.33887217]
[1744607144548,0.0004226,84934.0,84933.0,0.02964763]
[1744607145173,0.0004226,84934.0,84933.0,0.01829268]
[1744607145378,0.0004226,84934.0,84933.0,0.01629268]
[1744607145577,0.0004226,84934.0,84933.0,0.02029268]
[1744607145785,0.0004226,84934.0,84933.0,0.01329268]
[1744607146106,0.0004226,84934.0,84933.0,0.02264873]
[1744607146311,0.0004226,84934.0,84933.0,0.02464873]
[1744607153962,0.0481226,84934.0,84933.0,0.02464873]
[1744607154158,0.0481226,84934.0,84933.0,0.01135605]
[1744607156271,0.0933226,84934.0,84933.0,0.01135605]
[1744607156633,0.0933226,84934.0,84933.0,0.004]
[1744607157033,0.0933226,84934.0,84933.0,0.002]
[1744607157228,0.011775,84922.0,84919.0,0.00735605]
[1744607157655,0.011775,84922.0,84920.0,0.01339596]
[1744607157994,0.0477,84921.0,84920.0,0.02075201]
[1744607158140,0.0929,84921.0,84920.0,0.02075201]
[1744607158339,0.200224,84905.0,84902.0,0.00735605]
[1744607158762,0.200224,84905.0,84903.0,0.02088662]
[1744607158975,0.200223,84905.0,84903.0,0.02088662]
[1744607159199,0.0477,84906.0,84903.0,0.02088662]
[1744607159401,0.0477,84906.0,84904.0,0.19580205]
[1744607159680,0.011777,84909.0,84905.0,0.02529586]
[1744607159903,0.188443,84907.0,84905.0,0.02087491]
[1744607160148,0.200216,84908.0,84905.0,0.02087491]
[1744607160628,0.011777,84909.0,84905.0,0.02529586]
[1744607160855,0.011777,84909.0,84905.0,0.02829586]
[1744607161249,0.188443,84906.0,84905.0,0.02051886]
[1744607161613,0.188443,84906.0,84905.0,0.003]
[1744607161818,0.188443,84906.0,84905.0,0.001]
[1744607162222,0.236152,84902.0,84901.0,0.00046237]
[1744607162430,0.281352,84902.0,84901.0,0.00046237]
[1744607165484,0.281352,84902.0,84901.0,0.00146237]
[1744607167410,0.40219354,84902.0,84901.0,0.00146237]
[1744607168345,0.40219354,84902.0,84901.0,0.00046237]
[1744607168556,0.40319354,84902.0,84901.0,0.00046237]
[1744607168757,1.15769194,84902.0,84901.0,0.00046237]
[1744607169538,1.15969194,84902.0,84901.0,0.00046237]
[1744607169742,1.15869194,84902.0,84901.0,0.00046237]
[1744607169921,1.16069194,84902.0,84901.0,0.00046237]
[1744607170557,1.15869194,84902.0,84901.0,0.00046237]
[1744607170914,1.16269194,84902.0,84901.0,0.00046237]
[1744607173664,1.16269194,84902.0,84901.0,3.7e-07]
[1744607173881,1.16269194,84902.0,84890.0,0.0008454]
[1744607173882,0.623376,84891.0,84890.0,4e-07]
[1744607174087,0.3864,84890.0,84889.0,2.4e-07]
[1744607174286,0.55574154,84890.0,84889.0,2.4e-07]
[1744607175059,0.56468569,84890.0,84889.0,2.4e-07]
[1744607175833,0.57068569,84890.0,84889.0,2.4e-07]
[1744607176588,0.58522654,84890.0,84889.0,2.4e-07]
[1744607177326,0.59422654,84890.0,84889.0,2.4e-07]
[1744607178723,0.59422654,84890.0,84867.0,0.0008454]
[1744607178724,0.528528,84868.0,84867.0,0.0008454]
[1744607179021,0.668048,84868.0,84867.0,0.00093236]
[1744607179295,0.78888954,84868.0,84867.0,0.00093236]
[1744607180031,0.80058182,84868.0,84867.0,0.00093236]
[1744607180199,0.80058182,84868.0,84867.0,3.6e-07]
[1744607180620,2.01626182,84868.0,84867.0,3.6e-07]
[1744607180783,2.01326182,84868.0,84867.0,3.6e-07]
[1744607181178,2.02126182,84868.0,84867.0,0.00100036]
[1744607181408,2.01426182,84868.0,84867.0,3.6e-07]
[1744607181632,2.02326182,84868.0,84867.0,0.00100036]
[1744607181777,2.03111576,84868.0,84867.0,0.00100036]
[1744607182329,2.03511576,84868.0,84867.0,0.00100036]
[1744607183333,2.02626182,84868.0,84867.0,0.00100036]
[1744607183868,2.02630182,84868.0,84867.0,0.00100036]
[1744607184846,2.44080022,84868.0,84867.0,0.00100036]
[1744607188080,2.44981475,84868.0,84867.0,0.00100036]
[1744607188843,2.44080022,84868.0,84867.0,0.00100036]
[1744607189017,2.48790022,84868.0,84867.0,3.6e-07]
[1744607189429,0.528541,84862.0,84847.0,0.0208446]
[1744607189629,0.64938254,84862.0,84847.0,0.0208446]
[1744607190729,0.188563,84852.0,84847.0,0.0208446]
[1744607190907,0.188572,84848.0,84847.0,0.0208446]
[1744607191318,0.528572,84848.0,84847.0,0.0208446]
[1744607192331,0.18859,84840.0,84839.0,8e-07]
[1744607192637,0.18859,84840.0,84831.0,0.002]
[1744607192638,0.34,84839.0,84838.0,1e-06]
[1744607193005,0.46084154,84839.0,84838.0,9.36e-05]
[1744607193175,0.46981807,84839.0,84838.0,9.36e-05]
[1744607193777,0.50192204,84839.0,84838.0,6e-07]
[1744607194037,0.50192204,84839.0,84831.0,0.002]
[1744607194038,0.59024885,84832.0,84831.0,1e-06]
[1744607194162,2.47826879,84832.0,84831.0,1e-06]
[1744607196066,2.48626879,84832.0,84831.0,0.001001]
[1744607196265,2.48226879,84832.0,84831.0,1e-06]
[1744607196668,2.48826879,84832.0,84831.0,0.001001]
[1744607197331,2.60899727,84832.0,84831.0,0.001001]
[1744607197526,0.188641,84817.0,84816.0,0.0008442]
[1744607197772,0.78900254,84817.0,84816.0,0.00130652]
[1744607198864,0.79100254,84817.0,84816.0,0.00130652]
[1744607199781,1.20550094,84817.0,84816.0,0.00130652]
[1744607200085,1.20550094,84817.0,84813.0,0.0008458]
[1744607200086,0.59268885,84814.0,84813.0,3.2e-07]
[1744607200230,0.35454085,84808.0,84807.0,5.2e-07]
[1744607200426,0.54321085,84804.0,84803.0,9.2e-07]
[1744607200631,0.66405239,84804.0,84803.0,9.2e-07]
[1744607201083,0.69615636,84804.0,84803.0,9.2e-07]
[1744607201427,0.72662752,84804.0,84803.0,9.2e-07]
[1744607202209,0.66805239,84804.0,84803.0,9.2e-07]
[1744607202501,0.67205239,84804.0,84803.0,9.2e-07]
[1744607202848,0.01454085,84803.0,84802.0,9.2e-07]
[1744607203044,0.47538239,84803.0,84802.0,9.2e-07]
[1744607203956,0.47938239,84803.0,84802.0,9.2e-07]
[1744607204355,0.54321485,84802.0,84801.0,9.2e-07]
[1744607204579,0.80361639,84802.0,84801.0,9.2e-07]
[1744607205575,0.81261639,84802.0,84801.0,0.00100092]
[1744607206321,0.67305639,84802.0,84801.0,0.00100092]
[1744607206656,0.81265639,84802.0,84801.0,0.00100092]
[1744607208317,1.22715479,84802.0,84801.0,0.00100092]
[1744607208833,1.22715479,84802.0,84801.0,9.2e-07]
[1744607209068,1.22715479,84802.0,84782.0,0.0137746]
[1744607209069,0.528717,84783.0,84782.0,0.0137746]
[1744607209240,1.20365694,84783.0,84782.0,0.0137746]
[1744607210094,1.20365694,84783.0,84782.0,0.0157746]
[1744607210313,1.20365694,84783.0,84782.0,0.01583424]
[1744607211313,1.20365694,84783.0,84782.0,0.01383424]
[1744607211514,1.20665694,84783.0,84782.0,0.01383424]
[1744607211853,1.21065694,84783.0,84782.0,0.01483424]
[1744607212978,1.2192863,84783.0,84782.0,0.01483424]
[1744607214088,1.2192863,84783.0,84782.0,2.4e-07]
[1744607214089,1.2683863,84783.0,84782.0,2.4e-07]
[1744607214279,1.28292715,84783.0,84782.0,2.4e-07]
[1744607215252,1.27992715,84783.0,84782.0,2.4e-07]
[1744607215473,1.27992715,84783.0,84767.0,0.0004231]
[1744607215474,0.528741,84772.0,84767.0,0.0004231]
[1744607215643,0.528741,84772.0,84748.0,0.0004233]
[1744607215644,0.011798,84757.0,84748.0,0.0004233]
[1744607215860,0.528792,84749.0,84748.0,0.00056191]
[1744607216082,0.66131553,84749.0,84748.0,0.00056191]
[1744607216688,0.6699592,84749.0,84748.0,0.00056191]
[1744607217044,1.09899845,84749.0,84748.0,9.1e-07]
[1744607217897,1.0844576,84749.0,84748.0,9.1e-07]
[1744607218301,1.09899845,84749.0,84748.0,9.1e-07]
[1744607218912,1.10099845,84749.0,84748.0,9.1e-07]
[1744607219250,1.10299845,84749.0,84748.0,9.1e-07]
[1744607219452,1.10299845,84749.0,84722.0,0.0455]
[1744607219453,0.54334885,84742.0,84741.0,3.1e-07]
[1744607219657,1.06414794,84742.0,84741.0,0.00013906]
[1744607219810,1.06414794,84742.0,84718.0,0.000423]
[1744607219811,0.52883,84732.0,84731.0,6e-08]
[1744607219993,1.20372994,84732.0,84731.0,0.00011464]
[1744607220193,1.21827079,84732.0,84731.0,0.00011464]
[1744607221315,1.07871079,84732.0,84731.0,0.00011464]
[1744607221515,1.07871079,84732.0,84731.0,6.4e-07]
[1744607221516,1.21831079,84732.0,84731.0,6.4e-07]
[1744607221721,1.22231079,84732.0,84731.0,6.4e-07]
[1744607221918,1.22831079,84732.0,84731.0,6.4e-07]
[1744607222739,1.08871079,84732.0,84731.0,6.4e-07]
[1744607222963,1.22831079,84732.0,84731.0,6.4e-07]
[1744607224102,1.21376994,84732.0,84731.0,6.4e-07]
[1744607226638,1.20976994,84732.0,84731.0,6.4e-07]
[1744607226841,1.20376994,84732.0,84731.0,6.4e-07]
[1744607227038,1.21076994,84732.0,84731.0,6.4e-07]
[1744607228966,1.20676994,84732.0,84731.0,6.4e-07]
[1744607229516,1.21076994,84732.0,84731.0,6.4e-07]
[1744607229923,1.20376994,84732.0,84731.0,6.4e-07]
[1744607230092,0.87076994,84732.0,84731.0,6.4e-07]
[1744607230296,1.21076994,84732.0,84731.0,6.4e-07]
[1744607230458,0.7499284,84732.0,84731.0,6.4e-07]
[1744607230794,1.0869284,84732.0,84731.0,6.4e-07]
[1744607230992,1.0899284,84732.0,84731.0,6.4e-07]
[1744607231412,1.0859284,84732.0,84731.0,6.4e-07]
[1744607232978,1.0879284,84732.0,84731.0,6.4e-07]
[1744607236160,1.32949842,84732.0,84731.0,6.4e-07]
[1744607236371,1.34403927,84732.0,84731.0,6.4e-07]
[1744607236569,0.528846,84725.0,84718.0,0.000423]
[1744607236781,0.64968754,84725.0,84724.0,0.0002188]
[1744607237134,1.0641853,84725.0,84724.0,0.0002188]
[1744607237535,1.2038253,84725.0,84724.0,0.0002188]
[1744607237880,1.2048253,84725.0,84724.0,0.0002188]
[1744607238775,1.2058253,84725.0,84724.0,0.0002188]
[1744607238993,1.2048253,84725.0,84724.0,0.0002188]
[1744607239164,1.2088253,84725.0,84724.0,0.0002188]
[1744607239670,1.2078253,84725.0,84724.0,0.0002188]
[1744607239873,1.2108253,84725.0,84724.0,0.0002188]
[1744607240660,1.22734898,84725.0,84724.0,0.0002188]
[1744607241087,1.23621603,84725.0,84724.0,0.0002188]
[1744607241290,1.2342332,84725.0,84724.0,8e-07]
[1744607241703,1.0945932,84725.0,84724.0,8e-07]
[1744607241935,1.2342332,84725.0,84724.0,8e-07]
[1744607244670,1.2342332,84725.0,84724.0,0.0001188]
[1744607245510,1.2342332,84725.0,84724.0,8e-07]
[1744607249627,2.4494732,84725.0,84724.0,8e-07]
[1744607252700,2.43493235,84725.0,84724.0,8e-07]
[1744607252894,2.09533235,84725.0,84724.0,8e-07]
[1744607253014,2.43533235,84725.0,84724.0,8e-07]
[1744607265062,2.4498732,84725.0,84724.0,8e-07]
[1744607275479,2.43533235,84725.0,84724.0,8e-07]
[1744607275984,2.09533235,84725.0,84724.0,8e-07]
[1744607276347,2.0864653,84725.0,84724.0,8e-07]
[1744607276567,2.4264653,84725.0,84724.0,8e-07]
[1744607276770,2.0834653,84725.0,84724.0,8e-07]
[1744607276963,2.4234653,84725.0,84724.0,8e-07]
[1744607277180,2.4254653,84725.0,84724.0,8e-07]
[1744607277873,1.63573776,84725.0,84724.0,0.0489008]
[1744607278107,2.11161776,84725.0,84724.0,0.0959008]
[1744607278276,2.11361776,84725.0,84724.0,0.0959008]
[1744607278530,1.63373776,84725.0,84724.0,0.2847488]
[1744607278771,0.55837776,84725.0,84724.0,0.2847488]
[1744607279018,0.55837776,84725.0,84724.0,0.11233447]
[1744607279239,0.55437776,84725.0,84724.0,0.0959008]
[1744607279455,0.55537776,84725.0,84724.0,0.0979008]
[1744607279666,0.55537776,84725.0,84724.0,0.0959008]
[1744607280576,0.55537776,84725.0,84724.0,0.11230642]
[1744607281063,0.55637776,84725.0,84724.0,0.11430642]
[1744607281668,0.14188,84725.0,84724.0,0.11430642]
[1744607289332,0.330726,84725.0,84724.0,0.11430642]
[1744607289532,0.14188,84725.0,84724.0,0.11430642]
[1744607290842,0.200645,84727.0,84724.0,0.11230642]
[1744607291246,0.001,84725.0,84724.0,0.11430642]
[1744607291833,0.351802,84727.0,84724.0,0.11230642]
[1744607292244,0.351802,84727.0,84724.0,0.11430642]
[1744607292416,0.352802,84727.0,84724.0,0.11430642]
[1744607293690,0.188846,84725.0,84724.0,0.11430642]
[1744607293900,0.188846,84725.0,84724.0,0.11230642]
[1744607294097,0.001,84725.0,84724.0,0.11430642]
[1744607294612,0.001,84725.0,84724.0,0.11230642]
[1744607294809,0.001,84725.0,84724.0,0.11430642]
[1744607295018,0.352802,84727.0,84724.0,0.11430642]
[1744607295019,0.352802,84727.0,84724.0,0.11230642]
[1744607295268,0.352802,84727.0,84724.0,0.11430642]
[1744607295438,0.001,84725.0,84724.0,0.11430642]
[1744607298030,0.351802,84727.0,84724.0,0.11230642]
[1744607298764,0.352802,84727.0,84724.0,0.11430642]
[1744607303529,0.001,84727.0,84726.0,0.188844]
[1744607303784,0.001,84727.0,84726.0,0.20516515]
[1744607304334,0.001,84727.0,84726.0,0.01632115]
[1744607304705,0.13984,84728.0,84725.0,0.011802]
[1744607304883,0.001,84727.0,84726.0,0.01830057]
[1744607305097,0.001,84727.0,84726.0,0.20714457]
[1744607305504,0.001,84727.0,84726.0,0.21451969]
[1744607306535,0.001,84727.0,84726.0,0.02567569]
[1744607308554,0.65068254,84727.0,84726.0,0.02567569]
[1744607308693,0.69798254,84727.0,84726.0,0.02567569]
[1744607308910,0.69798254,84727.0,84726.0,0.002]
[1744607310899,1.1124803,84727.0,84726.0,0.002]
[1744607313126,1.2548003,84727.0,84726.0,0.002]
[1744607313327,0.188846,84725.0,84724.0,8e-07]
[1744607313549,1.11989322,84725.0,84724.0,8e-07]
[1744607313752,1.17302615,84725.0,84724.0,8e-07]
[1744607314810,1.17402615,84725.0,84724.0,0.0020008]
[1744607315379,1.17402615,84725.0,84711.0,0.002]
[1744607315380,0.54339985,84719.0,84711.0,0.002]
[1744607315579,0.54339985,84719.0,84714.0,3e-07]
[1744607315580,0.35454085,84716.0,84714.0,3e-07]
[1744607315783,1.07874815,84715.0,84714.0,0.00046346]
[1744607316787,1.0883779,84715.0,84714.0,0.00046346]
[1744607317412,1.1836779,84715.0,84714.0,0.00046346]
[1744607317613,1.1836779,84715.0,84711.0,0.002]
[1744607317614,0.54341585,84712.0,84711.0,4.6e-07]
[1744607317816,0.66425739,84712.0,84711.0,4.66e-05]
[1744607319016,1.07875515,84712.0,84711.0,6e-07]
[1744607319221,0.528906,84698.0,84697.0,0.000423]
[1744607319445,0.528906,84698.0,84696.0,0.0129296]
[1744607319446,0.528906,84698.0,84680.0,0.0004225]
[1744607319447,0.188942,84682.0,84680.0,0.0004225]
[1744607319646,0.79214354,84682.0,84681.0,0.00206016]
[1744607320465,0.79314354,84682.0,84681.0,0.00206016]
[1744607320663,1.2076413,84682.0,84681.0,0.00206016]
[1744607320869,1.2066413,84682.0,84681.0,0.00206016]
[1744607321105,1.2096413,84682.0,84681.0,0.00206016]
[1744607321267,0.34,84681.0,84680.0,6.6e-07]
[1744607321471,0.93578015,84681.0,84680.0,6.6e-07]
[1744607322057,0.99695838,84681.0,84680.0,6.6e-07]
[1744607322578,0.528982,84664.0,84647.0,0.02]
[1744607322742,2.4220013,84664.0,84663.0,0.00048337]
[1744607322897,2.43105388,84664.0,84663.0,0.00048337]
[1744607324029,2.43205388,84664.0,84663.0,0.00048337]
[1744607324482,2.4220013,84664.0,84663.0,0.00048337]
[1744607324660,2.30119976,84664.0,84663.0,0.00048337]
[1744607325525,2.30119976,84664.0,84663.0,0.04948337]
[1744607325526,1.77221776,84664.0,84663.0,0.04948337]
[1744607325728,1.35772,84664.0,84663.0,0.04948337]
[1744607326372,1.35972,84664.0,84663.0,0.04948337]
[1744607326688,1.21732,84664.0,84663.0,0.04948337]
[1744607327045,1.21532,84664.0,84663.0,0.04948337]
[1744607327471,1.21632,84664.0,84663.0,0.04948337]
[1744607327837,1.21532,84664.0,84663.0,0.04948337]
[1744607328172,1.21632,84664.0,84663.0,0.04948337]
[1744607329094,0.001,84664.0,84663.0,0.23846737]
[1744607329289,0.001,84664.0,84663.0,0.35930891]
[1744607329525,0.001,84664.0,84663.0,0.37342977]
[1744607330499,0.200747,84684.0,84663.0,0.37342977]
[1744607330500,0.1424,84682.0,84681.0,0.188944]
[1744607330698,0.1424,84682.0,84681.0,0.283044]
[1744607330908,0.011807,84690.0,84686.0,0.011808]
[1744607331116,1.21572,84691.0,84686.0,0.011808]
[1744607331117,1.21572,84691.0,84688.0,0.200734]
[1744607331607,1.21572,84691.0,84689.0,0.188924]
[1744607331945,1.21572,84691.0,84689.0,0.20298953]
[1744607332780,1.21572,84691.0,84689.0,0.20398953]
[1744607333180,1.21572,84691.0,84689.0,0.20498953]
[1744607335006,0.154207,84694.0,84691.0,0.200728]
[1744607335007,0.1424,84694.0,84691.0,0.200728]
[1744607335468,0.011806,84696.0,84692.0,0.02587548]
[1744607335603,0.1424,84697.0,84694.0,0.011807]
[1744607335836,0.1424,84697.0,84695.0,0.0455]
[1744607336257,0.671308,84697.0,84696.0,0.01395691]
[1744607337007,0.4834,84697.0,84696.0,0.01395691]
[1744607337238,0.1434,84697.0,84696.0,0.01395691]
[1744607337462,0.1424,84697.0,84696.0,0.01395691]
[1744607338393,0.1424,84697.0,84696.0,0.06255691]
[1744607338630,0.011805,84707.0,84702.0,0.011806]
[1744607338631,0.152885,84705.0,84702.0,0.011806]
[1744607339107,0.152885,84705.0,84703.0,0.01386122]
[1744607339937,0.341777,84705.0,84703.0,0.01386122]
[1744607340545,0.341777,84705.0,84703.0,0.001]
[1744607341364,0.341777,84705.0,84704.0,0.01387593]
[1744607342562,0.341777,84705.0,84704.0,0.001]
[1744607342790,0.341777,84705.0,84704.0,0.01587593]
[1744607344287,0.14108,84705.0,84704.0,0.01587593]
[1744607349035,0.32997,84705.0,84704.0,0.01587593]
[1744607349238,0.32997,84705.0,84704.0,0.002]
[1744607353680,0.14108,84705.0,84704.0,0.002]
[1744607354514,0.14108,84705.0,84704.0,0.01348708]
[1744607354801,0.14108,84705.0,84704.0,0.01156241]
[1744607355553,0.14108,84705.0,84704.0,0.20045541]
[1744607355783,0.14108,84705.0,84704.0,0.01156241]
[1744607357613,0.14108,84705.0,84704.0,0.01893983]
[1744607357980,0.14108,84705.0,84704.0,0.02262852]
[1744607358853,0.66997,84705.0,84704.0,0.02262852]
[1744607359300,0.66997,84705.0,84704.0,0.00568869]
[1744607359522,0.66997,84705.0,84704.0,0.002]
[1744607361455,0.66997,84705.0,84704.0,0.00937803]
[1744607361643,0.66997,84705.0,84704.0,0.002]
[1744607362305,0.66997,84705.0,84704.0,0.00937803]
[1744607363260,0.66997,84705.0,84704.0,0.002]
[1744607365388,0.66997,84705.0,84704.0,0.00937788]
[1744607366255,0.66997,84705.0,84704.0,0.01306682]
[1744607368004,0.66997,84705.0,84704.0,0.00568894]
[1744607368244,0.66997,84705.0,84704.0,0.002]
[1744607369484,0.79081154,84705.0,84704.0,0.002]
[1744607369694,0.83801154,84705.0,84704.0,0.002]
[1744607372647,1.2525093,84705.0,84704.0,0.002]
[1744607381243,1.2053093,84705.0,84704.0,0.002]
[1744607389384,1.08446776,84705.0,84704.0,0.002]
[1744607389585,0.55557776,84705.0,84704.0,0.002]
[1744607389792,0.89557776,84705.0,84704.0,0.01306773]
[1744607393900,0.75449776,84705.0,84704.0,0.01306773]
[1744607394123,0.89461776,84705.0,84704.0,0.01306773]
[1744607394694,1.0154593,84705.0,84704.0,0.01306773]
[1744607395202,1.0154593,84705.0,84704.0,0.002]
[1744607401614,1.13843185,84705.0,84704.0,0.002]
[1744607401816,1.12420015,84705.0,84704.0,0.002]
[1744607402018,1.12420015,84705.0,84667.0,0.01181]
[1744607402019,0.011809,84680.0,84679.0,0.0073797]
[1744607402221,1.2158163,84680.0,84679.0,0.0073797]
[1744607402394,0.188982,84664.0,84659.0,0.0471]
[1744607402594,0.328702,84664.0,84659.0,0.058912]
[1744607402809,0.13972,84664.0,84663.0,0.01005582]
[1744607403009,0.13972,84664.0,84663.0,0.00780372]
[1744607403169,0.13972,84664.0,84663.0,0.01005582]
[1744607403364,0.13972,84664.0,84663.0,0.00048337]
[1744607403564,0.13972,84664.0,84663.0,0.01011599]
[1744607404892,0.14072,84664.0,84663.0,0.01511599]
[1744607405630,0.14072,84664.0,84663.0,0.01880618]
[1744607408946,0.001,84664.0,84663.0,0.19010983]
[1744607409222,0.001,84664.0,84663.0,0.23920955]
[1744607409420,0.001,84664.0,84663.0,0.23684767]
[1744607414619,0.001,84664.0,84663.0,0.23315753]
[1744607416716,0.001,84664.0,84663.0,0.23684736]
[1744607417944,0.001,84664.0,84663.0,0.23920925]
[1744607418414,0.001,84664.0,84663.0,0.23684736]
[1744607425242,0.001,84664.0,84663.0,0.23920925]
[1744607426671,0.001,84664.0,84663.0,0.23684736]
[1744607429073,0.001,84664.0,84663.0,0.23920925]
[1744607431558,0.001,84664.0,84663.0,0.24548956]
[1744607440129,0.001,84664.0,84663.0,0.26003041]
[1744607440269,0.001,84664.0,84663.0,0.25866852]
[1744607440894,0.001,84664.0,84663.0,0.29178801]
[1744607441090,0.55417776,84690.0,84688.0,0.188928]
[1744607441345,0.55417776,84690.0,84689.0,0.01588711]
[1744607441727,0.13968,84690.0,84689.0,0.01588711]
[1744607442131,1.35536,84694.0,84693.0,0.188917]
[1744607442340,1.35536,84694.0,84693.0,0.20473457]